[Event "Romanian Rapid Open 2022"]
[Site "Sebes"]
[Date "2022.12.02"]
[Round "3.36"]
[White "Tudor, Henry Edward"]
[Black "Tiloiu, Darius-Lucian"]
[Result "1-0"]
[ECO "D13"]
[WhiteElo "1943"]
[BlackElo "1543"]
[Annotator "TA"]
[PlyCount "48"]
[EventDate "2022.12.02"]
[EventType "rapid"]
[EventCountry "ROU"]
[SourceTitle "playchess.com"]
[Source "ChessBase"]
[SourceQuality "1"]
[TimeControl "600+5"]

{[%evp 16,48,29,22,50,39,48,47,104,27,32,15,234,252,226,230,253,191,261,256,248,218,249,251,513,496,899,886,957,965,1177,1161,1782,1466,2370]} 1. d4 {[%emt 0:00:00]} d5 {[%emt 0:00:02]} 2. c4 {[%emt 0:00:02]} c6 {[%emt 0:00:04]} 3. cxd5 {[%emt 0:00:04]} cxd5 {[%emt 0:00:01]} 4. Nc3 {[%emt 0:00:01]} Nf6 {[%emt 0:00:08]} 5. Bf4 {[%emt 0:00:14]} e6 {[%emt 0:00:41]} 6. e3 {[%emt 0:00:07]} Bd6 {[%emt 0:00:12]} 7. Bg3 {[%emt 0:00:10]} Nc6 {[%emt 0:00:48]} 8. Nf3 {[%emt 0:00:19]} Bxg3 {[%emt 0:00:11]} 9. hxg3 {[%emt 0:00:02]} a6 {[%emt 0:00:30] D13: Slav Defence: Exchange variation without ...Bf5.} 10. Rc1 {[%emt 0:00:38]} Qd6 {[%emt 0:00:51]} 11. Bd3 {[%emt 0:01:56]} b5 {[%emt 0:01:13] [#]} (11... Bd7 $14) 12. Qe2 $146 {[%emt 0:00:15] White is more active.} (12. Rh4 $16) ({Predecessor:} 12. Qd2 Bb7 13. b3 Rd8 14. Rh4 Nd7 15. Kf1 g6 16. Ne2 Ne7 17. g4 e5 18. dxe5 Nxe5 {1-0 (52) Brown,M (2121)-Ostrovskiy,A (2294) Crossville 2011}) 12... Bb7 $11 {[%emt 0:01:09]} 13. Nd2 {[%emt 0:01:16]} (13. Rh4 {simplifies} h6 14. Kf1 Rc8 15. Rd1) 13... O-O $2 {[%emt 0:01:21] [#] Loses the game.} (13... h5 $11 {and Black has nothing to worry.}) 14. Bxh7+ $1 $18 {[%emt 0:00:46][%mdl 512]} Nxh7 {[%emt 0:00:18]} 15. Qh5 {[%emt 0:00:02][%csl Gh1][%cal Rh5h7] Against f5} f6 {[%emt 0:00:22]} 16. Qxh7+ {[%emt 0:00:05]} Kf7 {[%emt 0:00:01]} 17. Qh5+ {[%emt 0:00:01]} ({Much less strong is} 17. Rh6 $6 Ne7 18. Ne2 Rh8 19. Qxh8 Rxh8 20. Rxh8 Bc6 $16) 17... Ke7 {[%emt 0:00:10]} 18. Qg6 {[%emt 0:00:09]} Rf7 {[%emt 0:00:24]} 19. Nb3 {[%emt 0:00:13] Nc5 is the strong threat.} e5 $2 {[%emt 0:01:01]} (19... Rg8 20. Ne2 Kf8) 20. Nc5 {[%emt 0:00:44] White is clearly winning.} exd4 {[%emt 0:01:42]} (20... Ra7 $142 21. Rh7 Ba8 22. Rxg7 Rxg7 23. Qxg7+ Ke8 24. Qh8+ Qf8) 21. Nxb7 {[%emt 0:00:07] Pair of Knights!} Qd7 {[%emt 0:00:02]} 22. Nc5 {[%emt 0:00:21]} Qd6 {[%emt 0:00:02]} 23. exd4 {[%emt 0:00:48] Black must now prevent Kf1.} Nxd4 {[%emt 0:00:05] [#]} 24. Rh5 $1 {[%emt 0:01:36]} Re8 {[%emt 0:00:39] Weighted Error Value: White=0.17 (very precise) /Black=0.90} (24... f5 25. Qg5+) 1-0

[Event "Romanian Rapid Open 2022"]
[Site "Sebes"]
[Date "2022.12.02"]
[Round "3.37"]
[White "Butuza, Stefan Aurelian"]
[Black "Bucur, Denisa-Andreea"]
[Result "0-1"]
[ECO "B22"]
[WhiteElo "1529"]
[BlackElo "1953"]
[Annotator "TA"]
[PlyCount "46"]
[EventDate "2022.12.02"]
[EventType "rapid"]
[EventCountry "ROU"]
[SourceTitle "playchess.com"]
[Source "ChessBase"]
[SourceQuality "1"]
[TimeControl "600+5"]

{[%evp 11,46,5,16,3,22,15,38,11,17,-7,-2,-26,-14,-70,-68,-53,-43,-43,-36,-43,-32,-47,-6,-8,-8,-8,0,-8,8,0,18,-28,32,-14,41,-21,19]} 1. e4 {[%emt 0:00:01]} c5 {[%emt 0:00:06]} 2. c3 {[%emt 0:00:01]} e6 {[%emt 0:00:01]} 3. d4 {[%emt 0:00:02]} d5 {[%emt 0:00:08]} 4. exd5 {[%emt 0:10:21]} exd5 {[%emt 0:00:03]} 5. Nf3 {[%emt 0:00:00]} Nc6 {[%emt 0:00:02]} 6. Be3 {[%emt 0:00:00]} c4 {[%emt 0:00:11]} 7. Nbd2 {[%emt 0:00:00] B22: Sicilian: 2 c3.} Bg4 {[%emt 0:00:11]} 8. Be2 {[%emt 0:00:00]} Nf6 {[%emt 0:00:12] [#]} 9. O-O $146 {[%emt 0:00:00] White is slightly better.} ({Predecessor:} 9. Ne5 Bxe2 10. Qxe2 Be7 11. f4 O-O 12. O-O Rc8 13. g4 Re8 14. g5 Nd7 15. Qg4 {½-½ (59) Haack,S (1679)-Metzdorf,M (1879) Playchess.com INT 2020}) 9... Bd6 {[%emt 0:00:06]} 10. Re1 {[%emt 0:00:00]} O-O {[%emt 0:00:05]} 11. Qc2 {[%emt 0:00:00]} b5 {[%emt 0:00:21][%cal Bb7b5,Bb5b4][%mdl 32]} 12. Ng5 {[%emt 0:00:00]} (12. Nh4 $11) 12... Bxe2 $15 {[%emt 0:00:48]} 13. Rxe2 {[%emt 0:00:00]} Qc7 {[%emt 0:00:35]} 14. Nf1 {[%emt 0:00:00]} h6 {[%emt 0:01:27]} 15. Nf3 {[%emt 0:00:00]} b4 {[%emt 0:00:10]} (15... Rfe8 {simplifies} 16. Rae1 b4 17. Bd2 Rxe2 18. Rxe2 a5) 16. Ng3 {[%emt 0:00:00]} Ng4 {[%emt 0:01:17]} 17. Qf5 {[%emt 0:00:00]} (17. Nh4 {looks sharper.} Rae8 18. Nhf5 Bxg3 19. hxg3 Qd7 20. f3) 17... Nxe3 {[%emt 0:00:43]} 18. Rxe3 {[%emt 0:00:00]} Ne7 {[%emt 0:00:04]} 19. Qc2 {[%emt 0:00:00]} Ng6 {[%emt 0:01:15]} 20. cxb4 {[%emt 0:00:00]} Bxb4 {[%emt 0:00:46]} 21. Ne5 {[%emt 0:00:00]} (21. Nf5 $142) 21... Nf4 {[%emt 0:00:22]} (21... Nxe5 $11 22. Rxe5 Qc6) 22. Rc1 {[%emt 0:00:00]} (22. Nf5 $14 {is more appropriate.}) 22... Ne6 {[%emt 0:01:39]} ({Black should try} 22... f6 $11 23. Nf3 (23. Ng6 $2 Nxg6 24. Qxg6 Bd2 $17) 23... Rab8) 23. Ne2 {[%emt 0:00:41]} (23. Nf5 $14) 23... Qa5 {[%emt 0:00:14][%mdl 32768] Weighted Error Value: White=0.26 (precise) /Black=0.18 (very precise) . Loss on time!?} 0-1

[Event "Romanian Rapid Open 2022"]
[Site "Sebes"]
[Date "2022.12.02"]
[Round "3.38"]
[White "Jiros, Doru"]
[Black "Apostu, Rares-Stefan"]
[Result "1/2-1/2"]
[ECO "D00"]
[WhiteElo "1936"]
[BlackElo "1331"]
[Annotator "TA"]
[PlyCount "74"]
[EventDate "2022.12.02"]
[EventType "rapid"]
[EventCountry "ROU"]
[SourceTitle "playchess.com"]
[Source "ChessBase"]
[SourceQuality "1"]
[TimeControl "600+5"]

{[%evp 9,74,-19,0,-4,28,-1,5,-39,6,-16,31,29,23,33,40,40,99,77,66,58,69,56,102,66,281,250,280,93,158,104,125,93,98,-18,-39,-53,-43,-427,-390,-254,-43,-43,-38,-40,0,0,5,0,0,0,0,-8,0,0,0,0,0,0,0,0,0,0,0,0,0,0,0]} 1. d4 {[%emt 0:00:05]} d5 {[%emt 0:00:02]} 2. Bg5 {[%emt 0:00:03]} c5 {[%emt 0:00:02]} 3. e3 {[%emt 0:00:18]} Nc6 {[%emt 0:00:13]} 4. c3 {[%emt 0:00:39]} Nf6 {[%emt 0:00:10]} 5. Bxf6 {[%emt 0:00:03]} exf6 {[%emt 0:00:04]} 6. Nd2 {[%emt 0:00:11] D00: 1 d4 d5: Unusual lines.} Bd6 {[%emt 0:00:04]} 7. Ngf3 {[%emt 0:00:20]} O-O {[%emt 0:00:15]} 8. Bd3 {[%emt 0:00:05] [#]} Re8 $146 {[%emt 0:00:07]} (8... c4 $5 {[%cal Rc4d3]} 9. Bc2 f5 $15) ({Predecessor:} 8... g6 9. O-O Re8 10. Re1 f5 11. g3 Qf6 12. Bf1 Rd8 13. Rc1 b6 14. Qa4 Ne7 {0-1 (49) Martic,I (2314)-Hansen,E (2606) Chess.com INT 2022}) 9. O-O {[%emt 0:00:03]} f5 {[%emt 0:00:22]} (9... c4 $11 10. Bc2 f5) 10. dxc5 $14 {[%emt 0:00:14]} Bxc5 {[%emt 0:00:06]} 11. Nb3 {[%emt 0:00:01]} Bd6 {[%emt 0:00:02]} 12. Nbd4 {[%emt 0:00:02]} Re4 {[%emt 0:01:08]} 13. Nxc6 {[%emt 0:00:41]} bxc6 {[%emt 0:00:05]} 14. Bxe4 {[%emt 0:00:40]} fxe4 {[%emt 0:00:05]} 15. Nd4 {[%emt 0:00:42]} Qh4 {[%emt 0:00:10]} (15... c5 $14 {feels stronger.}) 16. f4 {[%emt 0:01:01]} (16. Nxc6 $2 Qxh2#) 16... g5 $2 {[%emt 0:00:28]} (16... exf3 $14 17. g3 (17. Nxf3 Qe4 $16) 17... Bxg3 18. Nxf3 Qh3) 17. g3 $18 {[%emt 0:00:34]} Qh3 {[%emt 0:00:12]} 18. Qe2 $2 {[%emt 0:00:17]} (18. fxg5 Bxg3 19. Qd2 (19. hxg3 Qxg3+ 20. Kh1 Qh4+ 21. Kg1 Qxg5+ 22. Kh2 Qh4+ 23. Kg1 Qg5+ 24. Kh2 Qh4+ 25. Kg1 Qg5+ $11) 19... Bh4 $16) (18. Nxc6 $18 {has better winning chances.} Be6 19. Qd2) 18... c5 {[%emt 0:00:19]} ({Better is} 18... gxf4 19. gxf4 (19. exf4 a5 $16) 19... Bg4) 19. Nc2 {[%emt 0:00:19]} (19. Nb5 $142 Ba6 20. Rad1 (20. fxg5 Bxg3 21. a4 Be5 $14) 20... gxf4 21. exf4 (21. Rxd5 f3 $11) 21... Bxb5 22. Qxb5) 19... Bg4 {[%emt 0:00:11]} 20. Qg2 {[%emt 0:00:02] Qxh3 is the strong threat.} Qh5 {[%emt 0:00:02]} 21. a3 {[%emt 0:00:42]} ({White should play} 21. fxg5 $16 Bh3 22. Qd2 $1) 21... Bh3 {[%emt 0:00:25]} 22. Qf2 {[%emt 0:00:43]} gxf4 {[%emt 0:00:25]} 23. gxf4 $2 {[%emt 0:00:15][%mdl 8192]} (23. exf4 $15 Bxf1 24. Qxf1) 23... Kh8 $19 {[%emt 0:00:16][%cal Od6e7] Hoping for ...Be7!} 24. Kh1 {[%emt 0:00:18] [#]} Bxf1 {[%emt 0:00:31]} (24... Be7 $1 $19 {[%cal Re7h4] And now ...Bh4! would win.} 25. Rg1 Bh4) 25. Rxf1 $15 {[%emt 0:00:02]} Rb8 {[%emt 0:00:10]} 26. b4 {[%emt 0:00:18]} a5 {[%emt 0:00:52]} 27. Rg1 {[%emt 0:00:24] The position is equal.} cxb4 {[%emt 0:00:12]} 28. Qg2 {[%emt 0:00:49][%csl Gg1][%cal Rg2g7]} (28. cxb4 {simplifies} axb4 29. Nxb4 Qf3+ 30. Qxf3 exf3 31. Nxd5 Bxa3 32. Rf1) 28... Qf3 {[%emt 0:00:20]} (28... bxa3 $2 29. Qg7#) 29. Qxf3 {[%emt 0:00:25]} exf3 {[%emt 0:00:02]} 30. axb4 {[%emt 0:00:01]} axb4 {[%emt 0:00:43]} 31. cxb4 {[%emt 0:00:13]} Bxb4 $11 {[%emt 0:00:13][%mdl 4096] Endgame KRB-KRN} 32. Rb1 {[%emt 0:00:07]} Bd6 {[%emt 0:00:11]} 33. Rxb8+ {[%emt 0:00:02]} Bxb8 {[%emt 0:00:02]} 34. Kg1 {[%emt 0:00:01]} Kg7 {[%emt 0:00:02]} 35. Kf2 {[%emt 0:00:01]} Kf6 {[%emt 0:00:03]} 36. Kxf3 {[%emt 0:00:02]} Ba7 {[%emt 0:00:08]} 37. Nb4 {[%emt 0:00:15]} Ke6 {[%emt 0:00:04] Weighted Error Value: White=0.37/Black=0.37} 1/2-1/2

[Event "Romanian Rapid Open 2022"]
[Site "Sebes"]
[Date "2022.12.02"]
[Round "3.39"]
[White "Draga, Laurentiu"]
[Black "Arion, Ilie"]
[Result "0-1"]
[ECO "A57"]
[WhiteElo "1404"]
[BlackElo "1924"]
[Annotator "TA"]
[PlyCount "84"]
[EventDate "2022.12.02"]
[EventType "rapid"]
[EventCountry "ROU"]
[SourceTitle "playchess.com"]
[Source "ChessBase"]
[SourceQuality "1"]
[TimeControl "600+5"]

{[%evp 9,83,15,33,-1,15,0,22,-76,-36,-27,18,0,30,-10,0,-83,-79,-258,-260,-343,-324,-333,-316,-386,-379,-437,-413,-440,-400,-386,-393,-481,-470,-527,-383,-364,-291,-268,-258,-436,-440,-688,-689,-622,-517,-456,-522,-567,-552,-720,-587,-950,-932,-912,-881,-979,-970,-1202,-1306,-1420,-1369,-1294,-988,-1076,-677,-2333,-2312,-2068,-1393,-29990,-29990,-29996,-29997,-29998,-29999,-29999]} 1. d4 {[%emt 0:06:34]} Nf6 {[%emt 0:00:02]} 2. c4 {[%emt 0:00:01]} c5 {[%emt 0:00:04]} 3. d5 {[%emt 0:00:02]} b5 {[%emt 0:00:02]} 4. e3 {[%emt 0:00:01]} b4 {[%emt 0:00:11]} 5. Bd3 {[%emt 0:00:02]} d6 {[%emt 0:00:11]} 6. Bd2 {[%emt 0:00:02] A57: Benko/Volga Gambit.} g6 {[%emt 0:00:02] [#]} 7. Nf3 $146 {[%emt 0:00:01]} ({Predecessor:} 7. a3 bxa3 8. Rxa3 Bg7 9. Ba5 Qd7 10. Nc3 a6 11. Na4 Ra7 12. Nb6 Qb7 13. Rb3 {0-1 (42) Blajet,R (1776)-Sivickis,W (1432) Wloclawek 2017}) 7... Bg7 {[%emt 0:00:02]} 8. h4 {[%emt 0:00:01]} (8. a3 $11) 8... Bg4 {[%emt 0:00:13][%cal Of6d5]} 9. a3 {[%emt 0:00:02]} bxa3 {[%emt 0:00:14]} 10. Nxa3 {[%emt 0:00:02]} Nbd7 {[%emt 0:00:05]} 11. Be2 {[%emt 0:00:07]} Ne4 {[%emt 0:00:03]} 12. Rb1 {[%emt 0:00:13]} (12. Nb5 $11) 12... Bf5 $17 {[%emt 0:00:08] Black has more active pieces. The white rooks are badly placed.} 13. h5 $2 {[%emt 0:00:47] White does not recover from this.} (13. Ra1 $17) 13... Nxd2 $19 {[%emt 0:00:06]} 14. Qxd2 {[%emt 0:00:05]} Bxb1 {[%emt 0:00:02]} 15. Nxb1 {[%emt 0:00:01]} Rb8 {[%emt 0:00:12]} 16. O-O {[%emt 0:00:26]} Rxb2 {[%emt 0:00:07]} (16... Bxb2 $2 {loses.} 17. Ne1 $19) 17. Qd1 {[%emt 0:00:06]} O-O {[%emt 0:00:02]} (17... gxh5 $2 {perishes.} 18. Ne1 $19) 18. Bd3 {[%emt 0:00:09]} Nf6 {[%emt 0:00:19]} (18... gxh5 $2 {too greedy.} 19. Bf5 $19) 19. hxg6 {[%emt 0:00:05]} hxg6 {[%emt 0:00:03]} 20. Nc3 {[%emt 0:00:10]} Qa5 {[%emt 0:00:12]} 21. Nb5 {[%emt 0:00:08][%cal Bc3b5,Bb5a7,Ba7c6][%mdl 32]} a6 {[%emt 0:00:03][%cal Ba7a6,Ba6a5,Ba5a4][%mdl 32]} 22. Na7 {[%emt 0:00:12]} Qc7 {[%emt 0:00:11]} 23. Nc6 {[%emt 0:00:04]} a5 {[%emt 0:00:22]} 24. Bb1 $2 {[%emt 0:00:18]} (24. Qc1 {keeps fighting.} Rb7 25. Qa3) 24... Ra8 {[%emt 0:00:18] [#] Threatens to win with ...a4.} 25. Qd3 {[%emt 0:00:06]} (25. Bc2 $142) 25... a4 {[%emt 0:00:09]} 26. Ng5 {[%emt 0:00:06]} Rb3 {[%emt 0:00:33][%cal Bb2b3,Bb3e3,Be3g3,Bg3g5,Bg5h5][%mdl 32]} 27. Qc2 {[%emt 0:00:09]} Qd7 {[%emt 0:01:00]} 28. f4 {[%emt 0:00:31]} Rxe3 {[%emt 0:00:24]} 29. f5 {[%emt 0:00:02]} Rg3 {[%emt 0:00:14]} 30. fxg6 {[%emt 0:00:06]} Rxg5 {[%emt 0:00:09]} 31. gxf7+ {[%emt 0:00:02]} Kxf7 {[%emt 0:00:07]} 32. Qd2 {[%emt 0:00:10]} Qg4 {[%emt 0:00:05] ...Rh8 is the strong threat.} 33. Rf2 {[%emt 0:00:28]} Rh5 {[%emt 0:00:11]} 34. Rf4 {[%emt 0:00:31]} Qg3 {[%emt 0:00:07] ( -> ...Rah8)} 35. Rf3 {[%emt 0:00:28]} Qg5 {[%emt 0:00:13]} 36. Qe1 {[%emt 0:00:07]} Re8 {[%emt 0:00:17] Strongly threatening ...Qh6.} 37. Re3 {[%emt 0:00:02]} Ng4 {[%emt 0:00:16]} 38. Rf3+ {[%emt 0:00:06]} Kg8 {[%emt 0:00:03] And now ...Be5 would win.} 39. Qe6+ {[%emt 0:00:02]} Kh8 {[%emt 0:00:02] Black mates.} 40. Bg6 {[%emt 0:00:13]} Qc1+ {[%emt 0:00:33]} 41. Rf1 {[%emt 0:00:02] [#]} Rh1+ $3 {[%emt 0:00:01]} 42. Kxh1 {[%emt 0:00:26]} Qxf1# {[%emt 0:00:03] Weighted Error Value: White=0.92/Black=0.32} 0-1

[Event "Romanian Rapid Open 2022"]
[Site "Sebes"]
[Date "2022.12.02"]
[Round "3.40"]
[White "Borodi, Cosmin-Alin"]
[Black "Tatar, Marius Lucian"]
[Result "0-1"]
[ECO "A13"]
[WhiteElo "1919"]
[BlackElo "1405"]
[Annotator "TA"]
[PlyCount "112"]
[EventDate "2022.12.02"]
[EventType "rapid"]
[EventCountry "ROU"]
[SourceTitle "playchess.com"]
[Source "ChessBase"]
[SourceQuality "1"]
[TimeControl "600+5"]

{[%evp 9,111,-17,-12,-20,-6,-6,-8,-54,-7,0,77,40,45,-15,0,0,6,0,0,-42,-48,-64,-52,-119,-129,-158,-157,-157,-160,-158,-154,-159,-87,-91,-94,-100,-76,-357,-79,-87,-68,-70,-75,-168,-152,-167,-143,-174,-139,-171,-140,-189,-157,-162,-161,-254,-260,-264,-265,-253,-254,-295,-284,-265,-222,-197,-135,-134,-77,-55,-73,-123,-129,-116,-131,-433,-422,-664,-649,-620,-544,-677,-673,-912,-595,-12838,-12838,-29988,-29989,-29989,-29990,-29989,-29988,-29995,-29989,-29994,-29995,-29997,-29998,-29998,-29999,-29999,-29999,-29999]} 1. c4 {[%emt 0:00:02]} e6 {[%emt 0:00:02]} 2. b3 {[%emt 0:00:03]} d5 {[%emt 0:00:03]} 3. cxd5 {[%emt 0:00:02]} exd5 {[%emt 0:00:01]} 4. Bb2 {[%emt 0:00:03]} Nf6 {[%emt 0:00:05]} 5. e3 {[%emt 0:00:01]} Be7 {[%emt 0:00:01]} 6. Qc2 {[%emt 0:00:01] A13: English Opening: 1...e6.} O-O {[%emt 0:00:04]} 7. Nf3 {[%emt 0:00:02]} b6 {[%emt 0:00:11] [#]} 8. h4 $146 {[%emt 0:00:02]} (8. Be2 $11 {deserves consideration.}) ({Predecessor:} 8. Ne5 Bb7 9. f4 c5 10. d4 Ne4 11. Nd2 Bh4+ 12. g3 Bf6 13. Nxe4 dxe4 14. Bg2 Bxe5 15. dxe5 {1-0 (38) Dmitrenko,V (2456)-Zavivaeva,E (1826) Chess.com INT 2021}) 8... Bb7 {[%emt 0:00:01]} (8... c5 $15 {is more appropriate.}) 9. Ng5 $11 {[%emt 0:00:02]} Ne4 {[%emt 0:00:28]} (9... Nbd7 $11 {remains equal.}) 10. Nxe4 {[%emt 0:01:15]} dxe4 {[%emt 0:00:01]} 11. h5 {[%emt 0:00:05]} (11. Nc3 $14) 11... Bf6 {[%emt 0:00:20]} 12. Nc3 {[%emt 0:00:07]} Nd7 {[%emt 0:00:19][%cal Bb8d7,Bd7c5,Bc5d3][%mdl 32]} 13. h6 {[%emt 0:00:07]} g6 {[%emt 0:00:11]} 14. Bb5 {[%emt 0:00:45]} Nc5 {[%emt 0:00:08]} 15. O-O {[%emt 0:02:44]} Nd3 {[%emt 0:00:21]} 16. Ba3 {[%emt 0:00:48]} (16. Bxd3 $15 exd3 17. Qc1) 16... c5 $17 {[%emt 0:00:29] [#] White must now prevent ...Be5.} (16... Be5 {seems wilder.} 17. Bxf8 Kxf8 18. g3 f5) 17. f4 {[%emt 0:01:24] Prevents Be5.} a6 {[%emt 0:00:20]} 18. Bxd3 {[%emt 0:00:20]} exd3 {[%emt 0:00:02]} ({Inferior is} 18... Qxd3 19. Qxd3 exd3 20. Na4 $11) 19. Qd1 {[%emt 0:00:15]} Bxc3 {[%emt 0:00:11]} 20. dxc3 {[%emt 0:00:03]} Qd5 {[%emt 0:00:04]} ({Black should try} 20... Be4 21. c4 Qh4) 21. Rf2 {[%emt 0:00:11]} Rad8 {[%emt 0:00:13] [#] Threatens to win with ...d2.} 22. c4 {[%emt 0:00:45] Against d2} Qe4 {[%emt 0:00:03]} 23. Qf3 $2 {[%emt 0:01:07][%mdl 8192]} (23. Qd2 $17 {was worth a try.}) 23... Rfe8 $2 {[%emt 0:01:08]} (23... d2 $19 24. Rd1 Qc2) 24. Bc1 {[%emt 0:00:31]} Qxf3 {[%emt 0:00:16] Black is much more active. The white rooks are badly placed.} 25. gxf3 {[%emt 0:00:03]} Bxf3 {[%emt 0:00:23]} 26. Bd2 {[%emt 0:00:15]} (26. Rxf3 $17 d2 27. Bxd2 Rxd2 28. Rf2) 26... Bc6 {[%emt 0:00:14]} 27. Raf1 {[%emt 0:00:13]} Re4 {[%emt 0:00:19]} 28. Kh2 {[%emt 0:00:09]} Rd6 {[%emt 0:00:22]} 29. Rg1 {[%emt 0:00:02]} Kf8 {[%emt 0:00:13]} 30. Rg5 {[%emt 0:00:08]} (30. a4 $17) 30... f6 {[%emt 0:00:25]} 31. Rg1 {[%emt 0:00:04]} b5 {[%emt 0:01:58]} 32. cxb5 {[%emt 0:00:01]} (32. Rc1 $142) 32... axb5 $19 {[%emt 0:00:01]} 33. Rc1 {[%emt 0:00:04]} Rd5 {[%emt 0:00:06]} 34. Kg3 {[%emt 0:00:19]} g5 {[%emt 0:00:47]} 35. Kh2 {[%emt 0:00:44]} gxf4 {[%emt 0:00:06]} 36. Rxf4 {[%emt 0:00:06]} Rh5+ {[%emt 0:00:05]} 37. Kg3 {[%emt 0:00:03]} Rxf4 (37... Rxh6 38. Rxc5 Rg6+ 39. Kf2 $17) (37... Re6 $19 {...f5 is the strong threat.} 38. Rh4 Rxh4 39. Kxh4 Re5) 38. Kxf4 {[%emt 0:00:01][%mdl 4096] Endgame KRB-KRB} c4 {[%emt 0:00:56]} ({Not} 38... Rxh6 39. Rxc5 Bh1 40. Rc3 $11 (40. Rxb5 Rh2 $17)) ({Black should play} 38... Ke7 {[%cal Oh5h2] Hoping for ...Rh2!} 39. e4 Re5) 39. bxc4 $17 {[%emt 0:00:03]} bxc4 {[%emt 0:00:01]} (39... Rh4+ {simplifies} 40. Kg3 Rxc4 41. Rxc4 bxc4 42. Kf4 Kf7) 40. Bb4+ {[%emt 0:00:02] Black converts the advantage convincingly.} (40. Kg4 $142 Rg5+ 41. Kf4) 40... Kf7 {[%emt 0:00:03]} 41. Kg3 {[%emt 0:00:09]} Bd5 {[%emt 0:00:05] Strongly threatening ...f5.} 42. Bc3 $2 {[%emt 0:00:05][%mdl 8192]} (42. e4 $17 {nothing else works.} Be6 43. a4) 42... Rxh6 $19 {[%emt 0:00:05]} 43. Rf1 {[%emt 0:00:03]} (43. e4 $142 Bxe4 44. Bb4) 43... Rg6+ {[%emt 0:00:02]} 44. Kh4 {[%emt 0:00:03]} Ke6 {[%emt 0:00:11]} 45. a4 {[%emt 0:00:01]} f5 {[%emt 0:00:10] And now ...Rg4+ would win.} 46. a5 {[%emt 0:00:04]} Rg2 {[%emt 0:00:09] Prevents Rf2.} 47. Kh3 {[%emt 0:00:03]} Rc2 {[%emt 0:00:04] ( -> ...Bg2+)} 48. Bb4 {[%emt 0:00:03]} Bg2+ {[%emt 0:00:02] Black mates.} 49. Kg3 {[%emt 0:00:02]} Bxf1 {[%emt 0:00:01]} 50. a6 {[%emt 0:00:01]} Ra2 {[%emt 0:00:02]} 51. Bc5 {[%emt 0:00:03]} Rxa6 {[%emt 0:00:02]} 52. Kf2 {[%emt 0:00:00]} d2 {[%emt 0:00:02]} 53. Kxf1 {[%emt 0:00:01]} d1=Q+ {[%emt 0:00:02]} 54. Kf2 {[%emt 0:00:01]} Ra2+ {[%emt 0:00:01]} 55. Kg3 {[%emt 0:00:01]} Qg1+ {[%emt 0:00:03]} 56. Kf4 {[%emt 0:00:00]} Rf2# {[%emt 0:00:00] Weighted Error Value: White=0.77/Black=0.37} 0-1